Workbook

Sheet BS
A1: Balance Sheet | Q1: Euros | V1: =1/1.956 -> 0.5112474438
A2: IG BALANCES MUST BE REPORTED IN LINE WITH THE NORMAL ICT DEADLINE
A3: 2 | B3: PURCHASE PRICE ALLOCATION | K3: INFORMATION/COMMENTS
B5: Name of entity acquired: | G5: 0 | K5: Fetched from sheet 1
B6: Currency (all amounts in thousands): | K6: e.g: AUD, EUR, USD, SEK etc.
A8: 2a) | B8: Acquisition cost / Purchase price | K8: All amounts at fair value at exchange date.
B10: Acquisition cost according to purchase agreement | H10: Amount
B11: Fair value of assets (cash and other) given/to be given
B12: Fair value of liabilities incurred / assumed
B13: Fair value of own equity instruments issued by the acquirer
B14: TOTAL ACQUISITION COST / PURCHASE PRICE | I14: =SUM(H11:H13) -> 0
G16: Transaction
B17: Transaction dates / maturity of purchase price | G17: date | H17: Amount
B18: Payment 1 | K18: Exchange date = the date of each transaction. Format: YYY-MM-DD, e.g. 2007-01-01.
B19: Payment 2 | K19: Acquisition date = the date on which the acquirer obtains control of the acquiree.
B20: Payment 3
B21: Payment 4
B22: Payment 5
B23: Payment 6
B24: TOTAL ACQUISITION COST / PURCHASE PRICE | I24: =SUM(H18:H23) -> 0 | K24: Validation (= 0) | L24: =I14-I24 -> 0
A27: 2b) | B27: Change in valuation of deferred considerations after the acquisition date
G28: Valuation
G29: date | H29: Amount
K30: Booked in account 26500 - Extraordinary Items Group
B33: Sum | I33: =SUM(H30:H32) -> 0
A36: 2c) | B36: Identifiable assets, liabilities and contingent liabilities
A37: Report in thousands local currency | F37: in base entity | H37: in acq register | I37: 2016-05-31 | Q37: Sep | V37: September
F38: Local/ | G38: Adjustments | H38: Fair | K38: Fair value adjustments in OB shall be accompanied by deferred tax entries.
B39: HFM | F39: statutory | G39: to IFRS/ | H39: value | I39: Acquired | K39: Exception: non-current assets held for sale => fair value less selling cost. | Q39: L'Curr | R39: L'Curr/1000 | S39: GAAP | T39: Closing | V39: EUR
A40: i) | B40: account | C40: ASSETS | F40: accounts | G40: AA GAAP | H40: adjustments | I40: balance | K40: "Carrying amount" = amount in acquirees books at the acquisition date | S40: adjustments | T40: balance
B41: 63100 | C41: Goodwill | F41: 0 | I41: =SUM(F41:H41) -> 0 | K41: Goodwill already in the books of the acquiree | Q41: 0 | R41: 0 | T41: =Q41+S41 -> 0 | V41: =T41*$V$1 -> 0
B42: 63300 | C42: Brand with indefinite life | D42: Useful life, years: | F42: 0 | I42: 0 | Q42: 0 | R42: 0 | T42: 0 | V42: 0
B43: 63400 | C43: Brand | F43: 0 | I43: 0 | Q43: 0 | R43: 0 | T43: 0 | V43: 0
B44: 63500 | C44: Software | F44: 122.2847 | I44: 122.2847 | Q44: =ESLDHFM(B44) ->  | R44: =(ESLDHFM(B44))/1000 -> 
B45: 63600 | C45: Technology | F45: 0 | I45: 0 | Q45: 0 | R45: 0 | T45: 0 | V45: 0
B46: 63700 | C46: Customer relations | F46: 0 | I46: 0 | Q46: 0 | R46: 0 | T46: 0 | V46: 0
B47: 63800 | C47: Projects in progress | F47: 177 | I47: 177 | Q47: =ESLDHFM(B47) ->  | R47: =(ESLDHFM(B47))/1000 -> 
B48: 63200 | C48: Other Intangible rights | F48: 0 | I48: 0 | Q48: 0 | R48: 0 | T48: 0 | V48: 0
C49: TOTAL INTANGIBLE ASSETS | F49: =SUM(F41:F48) -> 299.2847 | G49: =SUM(G41:G48) -> 0 | H49: =SUM(H41:H48) -> 0 | I49: =SUM(I41:I48) -> 299.2847 | Q49: =SUM(Q41:Q48) ->  | R49: =SUM(R41:R48) ->  | S49: =SUM(S41:S48) -> 0 | T49: =SUM(T41:T48) ->  | V49: =SUM(V41:V48) -> 
B50: 64300 | C50: Buildings | F50: 2867.94735 | I50: =SUM(F50:H50) -> 2867.94735 | Q50: =ESLDHFM(B50) ->  | R50: =(ESLDHFM(B50))/1000 ->  | T50: =Q50+S50 ->  | V50: =T50*$V$1 -> 
B51: 64400 | C51: Land & land improvements | F51: 434.50153 | G51: -52.6 | I51: 381.90153 | Q51: =ESLDHFM(B51) ->  | R51: =(ESLDHFM(B51))/1000 -> 
B52: 64200 | C52: Machinery | F52: 3162.00089 | G52: -529.5218872 | I52: 2632.479003 | Q52: =ESLDHFM(B52) ->  | R52: =(ESLDHFM(B52))/1000 -> 
B53: 64250 | C53: Equipment | F53: 290.94449 | I53: 290.94449 | Q53: =ESLDHFM(B53) ->  | R53: =( ESLDHFM(B53))/1000 -> 
B54: 64100 | C54: Construction in progress | F54: 749.88698 | I54: 749.88698 | Q54: =ESLDHFM(B54) ->  | R54: =(ESLDHFM(B54))/1000 -> 
B55: 64500 | C55: Other tangible assets | F55: 49.29895 | I55: 49.29895 | Q55: =ESLDHFM(B55) ->  | R55: =(ESLDHFM(B55))/1000 -> 
C56: TOTAL TANGIBLE FIXED ASSETS | F56: =SUM(F50:F55) -> 7554.58019 | G56: =SUM(G50:G55) -> -582.1218872 | H56: =SUM(H50:H55) -> 0 | I56: =SUM(I50:I55) -> 6972.458303 | Q56: =SUM(Q50:Q55) ->  | R56: =SUM(R50:R55) ->  | S56: =SUM(S50:S55) -> 0 | T56: =SUM(T50:T55) ->  | V56: =SUM(V50:V55) -> 
B57: 61100 | C57: Shares in subsidiaries | I57: =SUM(F57:H57) -> 0
B58: 61200 | C58: Shares in associated companies | I58: =SUM(F58:H58) -> 0 | Q58: 0 | R58: 0 | T58: =Q58+S58 -> 0 | V58: =T58*$V$1 -> 0
C59: TOTAL SHARES | F59: =SUM(F57:F58) -> 0 | G59: =SUM(G57:G58) -> 0 | H59: =SUM(H57:H58) -> 0 | I59: =SUM(I57:I58) -> 0 | Q59: =SUM(Q57:Q58) -> 0 | R59: =SUM(R57:R58) -> 0 | S59: =SUM(S57:S58) -> 0 | T59: =SUM(T57:T58) -> 0 | V59: =SUM(V57:V58) -> 0
B60: 61300 | C60: Other shares & participations | I60: =SUM(F60:H60) -> 0 | Q60: 0 | R60: 0 | T60: =Q60+S60 -> 0 | V60: =T60*$V$1 -> 0
B61: 62100EXT | C61: Long-term interest-bearing investments, ext | I61: 0 | Q61: 0 | R61: 0 | T61: 0 | V61: 0
B62: 62100IG | C62: Long-term interest-bearing investments, IG | I62: 0 | Q62: 0 | R62: 0 | T62: 0 | V62: 0
B63: 62200EXT | C63: Long-term non-interest-bearing receivables, ext | I63: 0 | Q63: 0 | R63: 0 | T63: 0 | V63: 0
B64: 62200IG | C64: Long-term non-interest-bearing receivables, IG | I64: 0 | Q64: 0 | R64: 0 | T64: 0 | V64: 0
B65: 62500 | C65: Advances paid - financial assets | I65: 0 | Q65: 0 | R65: 0 | T65: 0 | V65: 0
C66: OTHER FINANCIAL ASSETS | F66: =SUM(F60:F65) -> 0 | G66: =SUM(G60:G65) -> 0 | H66: =SUM(H60:H65) -> 0 | I66: =SUM(I60:I65) -> 0 | Q66: =SUM(Q60:Q65) -> 0 | R66: =SUM(R60:R65) -> 0 | S66: =SUM(S60:S65) -> 0 | T66: =SUM(T60:T65) -> 0 | V66: =SUM(V60:V65) -> 0
B67: 62600 | C67: Deferred tax receivables | F67: 0 | I67: =SUM(F67:H67) -> 0 | Q67: 0 | R67: 0 | T67: =Q67+S67 -> 0 | V67: =T67*$V$1 -> 0
C68: TOTAL FINANCIAL ASSETS | F68: =SUM(F66:F67) -> 0 | G68: =SUM(G66:G67) -> 0 | H68: =SUM(H66:H67) -> 0 | I68: =SUM(I66:I67) -> 0 | Q68: =SUM(Q66:Q67) -> 0 | R68: =SUM(R66:R67) -> 0 | S68: =SUM(S66:S67) -> 0 | T68: =SUM(T66:T67) -> 0 | V68: =SUM(V66:V67) -> 0
C69: TOTAL FIXED ASSETS | F69: =F49+F56+F59+F68 -> 7853.86489 | G69: =G49+G56+G59+G68 -> -582.1218872 | H69: =H49+H56+H59+H68 -> 0 | I69: =I49+I56+I59+I68 -> 7271.743003 | Q69: =Q49+Q56+Q59+Q68 ->  | R69: =R49+R56+R59+R68 ->  | S69: =S49+S56+S59+S68 -> 0 | T69: =T49+T56+T59+T68 ->  | V69: =V49+V56+V59+V68 -> 
B71: 55100 | C71: Material and supplies | F71: 2488.02932 | G71: -750 | I71: =SUM(F71:H71) -> 1738.02932 | Q71: =ESLDHFM(B71) ->  | R71: =(ESLDHFM(B71))/1000 ->  | T71: =Q71+S71 ->  | V71: =T71*$V$1 -> 
B72: 55200 | C72: Work in progress | F72: 7.34461 | I72: =SUM(F72:H72) -> 7.34461 | Q72: 0 | R72: 0 | T72: =Q72+S72 -> 0 | V72: =T72*$V$1 -> 0
B73: 55300EXT | C73: Finished goods, ext | F73: 638.68222 | I73: =SUM(F73:H73) -> 638.68222 | Q73: =ESLDHFM(B73) ->  | R73: =(ESLDHFM(B73))/1000 ->  | T73: =Q73+S73 ->  | V73: =T73*$V$1 -> 
B74: 55300IG | C74: Finished goods, ig | F74: 0 | I74: =SUM(F74:H74) -> 0 | Q74: 0 | R74: 0 | T74: =Q74+S74 -> 0 | V74: =T74*$V$1 -> 0
B75: 54500 | C75: Advances paid - inventory | F75: 4.00602 | I75: =SUM(F75:H75) -> 4.00602 | Q75: =ESLDHFM(B75) ->  | R75: =(ESLDHFM(B75))/1000 ->  | T75: =Q75+S75 ->  | V75: =T75*$V$1 -> 
C76: TOTAL INVENTORIES | F76: =SUM(F71:F75) -> 3138.06217 | G76: =SUM(G71:G75) -> -750 | H76: =SUM(H71:H75) -> 0 | I76: =SUM(I71:I75) -> 2388.06217 | Q76: =SUM(Q71:Q75) ->  | R76: =SUM(R71:R75) ->  | S76: =SUM(S71:S75) -> 0 | T76: =SUM(T71:T75) ->  | V76: =SUM(V71:V75) -> 
B77: 53100EXT | C77: Accounts receivable - trade, ext | F77: 1686.00259 | G77: -200 | I77: =SUM(F77:H77) -> 1486.00259 | Q77: =ESLDHFM(B77) ->  | R77: =(ESLDHFM(B77))/1000 ->  | T77: =Q77+S77 ->  | V77: =T77*$V$1 -> 
B78: 53100IG | C78: Accounts receivable - trade, ig | F78: 0 | I78: =SUM(F78:H78) -> 0 | Q78: =ESLDHFM(B78) ->  | R78: =(ESLDHFM(B78))/1000 ->  | T78: =Q78+S78 ->  | V78: =T78*$V$1 -> 
C79: TOTAL ACCOUNTS RECEIVABLE | F79: =SUM(F77:F78) -> 1686.00259 | G79: =SUM(G77:G78) -> -200 | H79: =SUM(H77:H78) -> 0 | I79: =SUM(I77:I78) -> 1486.00259 | Q79: =SUM(Q77:Q78) ->  | R79: =SUM(R77:R78) ->  | S79: =SUM(S77:S78) -> 0 | T79: =SUM(T77:T78) ->  | V79: =SUM(V77:V78) -> 
B80: 54100IG | C80: S-t interest non-interest bearing rec, ig | F80: 0 | I80: =SUM(F80:H80) -> 0 | Q80: 0 | R80: 0 | T80: =Q80+S80 -> 0 | V80: =T80*$V$1 -> 0
B81: 54200EXT | C81: Accrued interest income, ext | F81: 0 | I81: 0 | Q81: 0 | R81: 0 | T81: 0 | V81: 0
B82: 54200IG | C82: Accrued interest income, IG | F82: 0 | I82: 0 | Q82: 0 | R82: 0 | T82: 0 | V82: 0
B83: 54300 | C83: Prepaid expenses and accrued income | F83: 34.8788 | I83: 34.8788 | Q83: =ESLDHFM(B83) ->  | R83: =(ESLDHFM(B83))/1000 -> 
B84: 54350 | C84: Derivatives - unrealized gains | F84: 0 | I84: 0 | T84: 0 | V84: 0
B85: 54400 | C85: Income tax claims | F85: 95 | G85: -95 | I85: 0 | Q85: =ESLDHFM(B85) ->  | R85: =(ESLDHFM(B85))/1000 -> 
B86: 54600EXT | C86: Other current assets, ext | F86: 49.61862 | I86: 49.61862 | Q86: =ESLDHFM(B86) ->  | R86: =(ESLDHFM(B86))/1000 -> 
B87: 54600IG | C87: Other current assets, ig | F87: 0 | G87: 0 | H87: 0 | I87: 0 | Q87: =ESLDHFM(B87) ->  | R87: =(ESLDHFM(B87))/1000 -> 
B88: 52100EXT | C88: S-t interest bearing investments, ext | F88: 0 | I88: 0 | Q88: 0 | R88: 0 | T88: 0 | V88: 0
B89: 52100IG | C89: S-t interest bearing investments, ig | F89: 0 | I89: 0 | Q89: 0 | R89: 0 | T89: 0 | V89: 0
C90: OTHER CURRENT RECEIVABLES AND INVESTMENTS | F90: =SUM(F80:F89) -> 179.49742 | G90: =SUM(G80:G89) -> -95 | H90: =SUM(H80:H89) -> 0 | I90: =SUM(I80:I89) -> 84.49742 | Q90: =SUM(Q80:Q89) ->  | R90: =SUM(R80:R89) ->  | S90: =SUM(S80:S89) -> 0 | T90: =SUM(T80:T89) ->  | V90: =SUM(V80:V89) -> 
B91: 56000 | C91: Assets discontinued operations | F91: 0 | I91: =SUM(F91:H91) -> 0 | Q91: 0 | R91: 0 | T91: =Q91+S91 -> 0 | V91: =T91*$V$1 -> 0
C92: TOTAL INVENTORIES AND RECEIVABLES | F92: =F76+F79+F90+F91 -> 5003.56218 | G92: =G76+G79+G90+G91 -> -1045 | H92: =H76+H79+H90+H91 -> 0 | I92: =I76+I79+I90+I91 -> 3958.56218 | Q92: =Q76+Q79+Q90+Q91 ->  | R92: =R76+R79+R90+R91 ->  | S92: =S76+S79+S90+S91 -> 0 | T92: =T76+T79+T90+T91 ->  | V92: =V76+V79+V90+V91 -> 
B94: 51000EXT | C94: Cash and bank | F94: 2117.48783 | I94: =SUM(F94:H94) -> 2117.48783 | Q94: =ESLDHFM(B94) ->  | R94: =(ESLDHFM(B94))/1000 ->  | T94: =Q94+S94 ->  | V94: =T94*$V$1 -> 
B95: 51100 | C95: Cash in transit | F95: 0 | Q95: 0 | R95: 0 | T95: =Q95+S95 -> 0 | V95: =T95*$V$1 -> 0
B96: 51200 | C96: S-t interest-bearing inv, ext | F96: 0 | Q96: 0 | R96: 0 | T96: =Q96+S96 -> 0 | V96: =T96*$V$1 -> 0
B97: 51000IG | C97: Cash pool receivable, IG | F97: 0 | I97: =SUM(F97:H97) -> 0 | Q97: 0 | R97: 0 | T97: =Q97+S97 -> 0 | V97: =T97*$V$1 -> 0
C98: TOTAL CASH AND CASH EQUIVALENTS | F98: =SUM(F94:F97) -> 2117.48783 | G98: =SUM(G94:G97) -> 0 | H98: =SUM(H94:H97) -> 0 | I98: =SUM(I94:I97) -> 2117.48783 | Q98: =SUM(Q94:Q97) ->  | R98: =SUM(R94:R97) ->  | S98: =SUM(S94:S97) -> 0 | T98: =SUM(T94:T97) ->  | V98: =SUM(V94:V97) -> 
C99: TOTAL ASSETS | F99: =F69+F98+F92 -> 14974.9149 | G99: =G69+G98+G92 -> -1627.121887 | H99: =H69+H98+H92 -> 0 | I99: =I69+I98+I92 -> 13347.79301 | Q99: =Q69+Q98+Q92 ->  | R99: =R69+R98+R92 ->  | S99: =S69+S98+S92 -> 0 | T99: =T69+T98+T92 ->  | V99: =V69+V98+V92 -> 
F100: Local/ | G100: Adjustments | H100: Fair
B101: HFM | F101: statutory | G101: to IFRS/ | H101: value | I101: Acquired
B102: account | C102: EQUITY | F102: accounts | G102: AA GAAP | H102: adjustments | I102: balance
B103: 93100 | C103: Share capital | F103: 1100 | I103: =SUM(F103:H103) -> 1100 | Q103: =-ESLDHFM(B103) ->  | R103: =-(ESLDHFM(B103))/1000 ->  | T103: =Q103+S103 ->  | V103: =T103*$V$1 -> 
B104: 93200 | C104: Other contributed capital | F104: 1532.10942 | G104: -1532.10942 | I104: 0 | Q104: =-(ESLDHFM(B104)) ->  | R104: =-(ESLDHFM(B104))/1000 -> 
B105: 93300 | C105: Translation difference | F105: 0 | I105: 0 | Q105: 0 | R105: 0 | T105: 0 | V105: 0
B106: 93400 | C106: Retained earnings | F106: 10033.34102 | G106: 348 | I106: 10381.34102 | Q106: =-ESLDHFM(B106) ->  | R106: =-(ESLDHFM(B106))/1000 -> 
B107: 93500 | C107: NET INCOME | F107: 1123.69519 | G107: -177 | I107: 946.69519 | K107: Net income current financial year up to acquisition date (January current year => acquisition date). | Q107: =-ESLDHFM(B107) ->  | R107: =-(ESLDHFM(B107))/1000 -> 
B108: 93600 | C108: Translation diff avg / end (net income) | F108: 0 | I108: 0 | K108: For asset deals: Enter the acquired net assets in this line | Q108: 0 | R108: 0 | T108: 0 | V108: 0
C109: TOTAL EQUITY | F109: =SUM(F103:F108) -> 13789.14563 | G109: =SUM(G103:G108) -> -1361.10942 | H109: =SUM(H103:H108) -> 0 | I109: =SUM(I103:I108) -> 12428.03621 | Q109: =SUM(Q103:Q108) ->  | R109: =SUM(R103:R108) ->  | S109: =SUM(S103:S108) -> 0 | T109: =SUM(T103:T108) ->  | V109: =SUM(V103:V108) -> 
B110: 93200 | C110: Non-controlling interest | I110: =SUM(F110:H110) -> 0 | Q110: 0 | R110: 0 | T110: =Q110+S110 -> 0 | V110: =T110*$V$1 -> 0
C111: TOTAL EQUITY incl NCI | F111: =SUM(F109:F110) -> 13789.14563 | G111: =SUM(G109:G110) -> -1361.10942 | H111: =SUM(H109:H110) -> 0 | I111: =SUM(I109:I110) -> 12428.03621 | Q111: =SUM(Q109:Q110) ->  | R111: =SUM(R109:R110) ->  | S111: =SUM(S109:S110) -> 0 | T111: =SUM(T109:T110) ->  | V111: =SUM(V109:V110) -> 
C113: LIABILITIES
B114: 84000EXT | C114: L-T interest-bearing loans, ext | F114: 0 | I114: =SUM(F114:H114) -> 0 | Q114: 0 | R114: 0 | T114: =Q114+S114 -> 0 | V114: =T114*$V$1 -> 0
B115: 84000IG | C115: L-T interest-bearing loans, IG | F115: 0 | I115: =SUM(F115:H115) -> 0 | Q115: 0 | R115: 0 | T115: =Q115+S115 -> 0 | V115: =T115*$V$1 -> 0
C116: TOTAL LONG-TERM LOANS | F116: =SUM(F114:F115) -> 0 | G116: =SUM(G114:G115) -> 0 | H116: =SUM(H114:H115) -> 0 | I116: =SUM(I114:I115) -> 0 | Q116: =SUM(Q114:Q115) -> 0 | R116: =SUM(R114:R115) -> 0 | S116: =SUM(S114:S115) -> 0 | T116: =SUM(T114:T115) -> 0 | V116: =SUM(V114:V115) -> 0
B118: 87100 | C118: Provisions for PRI pensions (Sw.) | F118: 0 | I118: =SUM(F118:H118) -> 0 | Q118: 0 | R118: 0 | T118: =Q118+S118 -> 0 | V118: =T118*$V$1 -> 0
B119: 87200 | C119: Provisions for other pensions | F119: 248.23383 | I119: 248.23383 | Q119: =-ESLDHFM(B119) ->  | R119: =-(ESLDHFM(B119))/1000 -> 
B120: 87300 | C120: L-T tax provisions | F120: 0 | I120: 0 | Q120: 0 | R120: 0 | T120: 0 | V120: 0
B121: 87430T | C121: L-T restructuring provisions | F121: 0 | I121: 0 | Q121: 0 | R121: 0 | T121: 0 | V121: 0
B122: 87400T | C122: L-T other provisions | F122: 0 | I122: 0 | Q122: 0 | R122: 0 | T122: 0 | V122: 0
B123: 84100 | C123: L-T def considerations | F123: 0 | I123: 0 | Q123: 0 | R123: 0 | T123: 0 | V123: 0
B124: 86000EXT | C124: L-T non-interest bearing liabilities, ext | F124: 0 | I124: 0 | Q124: 0 | R124: 0 | T124: 0 | V124: 0
B125: 86000IG | C125: L-T non-interest bearing liabilities, IG | F125: 0 | I125: 0 | K125: Restructuring provisions are not allowed unless | Q125: 0 | R125: 0 | T125: 0 | V125: 0
B126: 88100 | C126: L-T advances received | F126: 0 | I126: 0 | K126: the committment existed in the acquiree at the acquisition. | Q126: 0 | R126: 0 | T126: 0 | V126: 0
C127: OTHER NON-CURRENT LIABILITIES AND PROVISIONS | F127: =SUM(F118:F126) -> 248.23383 | G127: =SUM(G118:G126) -> 0 | H127: =SUM(H118:H126) -> 0 | I127: =SUM(I118:I126) -> 248.23383 | Q127: =SUM(Q118:Q126) ->  | R127: =SUM(R118:R126) ->  | S127: =SUM(S118:S126) -> 0 | T127: =SUM(T118:T126) ->  | V127: =SUM(V118:V126) -> 
B128: 88000 | C128: Deferred tax liabilities | F128: 369.52272 | G128: -288 | I128: =SUM(F128:H128) -> 81.52272 | Q128: =-ESLDHFM(B128) ->  | R128: =-(ESLDHFM(B128))/1000 ->  | T128: =Q128+S128 ->  | V128: =T128*$V$1 -> 
C129: TOTAL LONG-TERM LIABILITIES | F129: =F127+F128 -> 617.75655 | G129: =G127+G128 -> -288 | H129: =H127+H128 -> 0 | I129: =I127+I128 -> 329.75655 | Q129: =Q127+Q128 ->  | R129: =R127+R128 ->  | S129: =S127+S128 -> 0 | T129: =T127+T128 ->  | V129: =V127+V128 -> 
B131: 81000EXT | C131: Short-term interest-bearing loans, EXT | F131: 81 | I131: =SUM(F131:H131) -> 81 | Q131: =-ESLDHFM(B131) ->  | R131: =-(ESLDHFM(B131))/1000 ->  | T131: =Q131+S131 ->  | V131: =T131*$V$1 -> 
B132: 81000IG | C132: Short-term interest-bearing loans, IG | F132: 0 | I132: =SUM(F132:H132) -> 0 | Q132: 0 | R132: 0 | T132: =Q132+S132 -> 0 | V132: =T132*$V$1 -> 0
B133: 85000EXT | C133: Bank overdraft | F133: 0 | I133: =SUM(F133:H133) -> 0 | Q133: =-(ESLDHFM(B133)) ->  | R133: =-(ESLDHFM(B133))/1000 ->  | T133: =Q133+S133 ->  | V133: =T133*$V$1 -> 
B134: 85000IG | C134: Cash pool overdraft, IG | F134: 0 | I134: =SUM(F134:H134) -> 0 | Q134: 0 | R134: 0 | T134: =Q134+S134 -> 0 | V134: =T134*$V$1 -> 0
C135: SHORT-TERM LOANS | F135: =SUM(F131:F134) -> 81 | G135: =SUM(G131:G134) -> 0 | H135: =SUM(H131:H134) -> 0 | I135: =SUM(I131:I134) -> 81 | Q135: =SUM(Q131:Q134) ->  | R135: =SUM(R131:R134) ->  | S135: =SUM(S131:S134) -> 0 | T135: =SUM(T131:T134) ->  | V135: =SUM(V131:V134) -> 
B136: 82000EXT | C136: Accounts payable, ext | F136: 183.89148 | I136: =SUM(F136:H136) -> 183.89148 | Q136: =-(ESLDHFM(B136)) ->  | R136: =-(ESLDHFM(B136))/1000 ->  | T136: =Q136+S136 ->  | V136: =T136*$V$1 -> 
B137: 82000IG | C137: Accounts payable, IG | F137: 0 | I137: =SUM(F137:H137) -> 0 | Q137: =-(ESLDHFM(B137)) ->  | R137: =-(ESLDHFM(B137))/1000 ->  | T137: =Q137+S137 ->  | V137: =T137*$V$1 -> 
C138: TOTAL ACCOUNTS PAYABLE | F138: =SUM(F136:F137) -> 183.89148 | G138: =SUM(G136:G137) -> 0 | H138: =SUM(H136:H137) -> 0 | I138: =SUM(I136:I137) -> 183.89148 | Q138: =SUM(Q136:Q137) ->  | R138: =SUM(R136:R137) ->  | S138: =SUM(S136:S137) -> 0 | T138: =SUM(T136:T137) ->  | V138: =SUM(V136:V137) -> 
B139: 81300 | C139: S-T tax provisions | F139: 0 | I139: =SUM(F139:H139) -> 0 | Q139: 0 | R139: 0 | T139: =Q139+S139 -> 0 | V139: =T139*$V$1 -> 0
B140: 81430T | C140: S-T restructuring provisions | F140: 0 | I140: 0 | Q140: 0 | R140: 0 | T140: 0 | V140: 0
B141: 81400T | C141: S-T other provisions | F141: 0 | I141: 0 | Q141: 0 | R141: 0 | T141: 0 | V141: 0
B142: 81100 | C142: S-T def considerations | F142: 0 | I142: 0 | Q142: 0 | R142: 0 | T142: 0 | V142: 0
B143: 831000EXT | C143: Short-term non interest-bearing liabilities, ext | F143: 0 | I143: 0 | Q143: 0 | R143: 0 | T143: 0 | V143: 0
B144: 831000IG | C144: Short-term non interest-bearing liabilities, IG | F144: 0 | I144: 0 | Q144: 0 | R144: 0 | T144: 0 | V144: 0
B145: 83200EXT | C145: Accrued interest expenses, ext | F145: 0 | I145: 0 | Q145: 0 | R145: 0 | T145: 0 | V145: 0
B146: 83200IG | C146: Accrued interest expenses, IG | F146: 0 | I146: 0 | Q146: 0 | R146: 0 | T146: 0 | V146: 0
B147: 83300 | C147: Accrued expenses and prepaid income | F147: =SUM(F148:F153) -> 286.35222 | G147: =SUM(G148:G153) -> 0 | H147: =SUM(H148:H153) -> 0 | I147: =SUM(I148:I153) -> 286.35222 | Q147: =SUM(Q148:Q153) ->  | R147: =SUM(R148:R153) ->  | T147: =SUM(T148:T153) ->  | V147: =SUM(V148:V153) -> 
B148: 83301 | C148: Personnel related costs | F148: 186.54526 | I148: =SUM(F148:H148) -> 186.54526 | Q148: =-(ESLDHFM(B148)) ->  | R148: =-(ESLDHFM(B148))/1000 ->  | T148: =Q148+S148 ->  | V148: =T148*$V$1 -> 
B149: 83302 | C149: Social charges | F149: 59.15807 | I149: 59.15807 | Q149: =-ESLDHFM(B149) ->  | R149: =-(ESLDHFM(B149))/1000 -> 
B150: 83303 | C150: Warranty costs | F150: 0 | I150: 0 | Q150: 0 | R150: 0 | T150: 0 | V150: 0
B151: 83304 | C151: Customer discounts and commissions | F151: 0 | I151: 0 | Q151: 0 | R151: 0 | T151: 0 | V151: 0
B152: 83305 | C152: Prepaid income | F152: 0 | I152: 0 | Q152: 0 | R152: 0 | T152: 0 | V152: 0
B153: 83306 | C153: Other accrued expenses | F153: 40.64889 | I153: 40.64889 | Q153: =-ESLDHFM(B153) ->  | R153: =-(ESLDHFM(B153))/1000 -> 
B154: 83350 | C154: Derivatives - unrealized losses | F154: 0 | I154: 0 | Q154: 0 | R154: 0 | T154: 0 | V154: 0
B155: 83400 | C155: Income tax liabilities | F155: 0 | G155: 22 | I155: 22 | Q155: 0 | R155: 0 | T155: 0 | V155: 0
B156: 83500 | C156: Short-term advances received | F156: 13.5594 | I156: 13.5594 | Q156: =-(ESLDHFM(B156)) ->  | R156: =-(ESLDHFM(B156))/1000 -> 
B157: 83600EXT | C157: Other current liabilities, ext | F157: 2.78841 | I157: 2.78841 | Q157: =-(ESLDHFM(B157)) ->  | R157: =-(ESLDHFM(B157))/1000 -> 
B158: 83600IG | C158: Other current liabilities, IG | F158: 0 | I158: 0 | Q158: 0 | R158: 0 | T158: 0 | V158: 0
C159: OTHER CURRENT LIABILITIES AND PROVISIONS | F159: =SUM(F139:F147)+SUM(F154:F157) -> 302.70003 | G159: =SUM(G139:G147)+SUM(G154:G157) -> 22 | H159: =SUM(H139:H147)+SUM(H154:H157) -> 0 | I159: =SUM(I139:I147)+SUM(I154:I157) -> 324.70003 | Q159: =SUM(Q139:Q147)+SUM(Q154:Q157) ->  | R159: =SUM(R139:R147)+SUM(R154:R157) ->  | S159: =SUM(S139:S147)+SUM(S154:S157) -> 0 | T159: =SUM(T139:T147)+SUM(T154:T157) ->  | V159: =SUM(V139:V147)+SUM(V154:V157) -> 
B160: 84400 | C160: Liabilities discontinued operations | F160: 0 | I160: =SUM(F160:H160) -> 0 | Q160: 0 | R160: 0 | T160: =Q160+S160 -> 0 | V160: =T160*$V$1 -> 0
C161: TOTAL CURRENT LIABILITIES | F161: =F135+F138+F159+F160 -> 567.59151 | G161: =G135+G138+G159+G160 -> 22 | H161: =H135+H138+H159+H160 -> 0 | I161: =I135+I138+I159+I160 -> 589.59151 | Q161: =Q135+Q138+Q159+Q160 ->  | R161: =R135+R138+R159+R160 ->  | S161: =S135+S138+S159+S160 -> 0 | T161: =T135+T138+T159+T160 ->  | V161: =V135+V138+V159+V160 -> 
C163: TOTAL LIABILITIES | F163: =F161+F129 -> 1185.34806 | G163: =G161+G129 -> -266 | H163: =H161+H129 -> 0 | I163: =I161+I129 -> 919.34806 | Q163: =Q161+Q129 ->  | R163: =R161+R129 ->  | S163: =S161+S129 -> 0 | T163: =T161+T129 ->  | V163: =V161+V129 -> 
C165: TOTAL EQUITY AND LIABILITIES | F165: =F111+F163 -> 14974.49369 | G165: =G111+G163 -> -1627.10942 | H165: =H111+H163 -> 0 | I165: =I111+I163 -> 13347.38427 | Q165: =Q111+Q163 ->  | R165: =R111+R163 ->  | S165: =S111+S163 -> 0 | T165: =T111+T163 ->  | V165: =V111+V163 -> 
C166: Validation Assets vs Liabilities | F166: =F99-F165 -> 0.42121 | G166: =G99-G165 -> -0.012467219 | H166: =H99-H165 -> 0 | I166: =I99-I165 -> 0.408742781 | K166: Validation (= 0) | L166: =SUM(F166:H166) -> 0.408742781 | M166: Note: For asset deals the acquired net assets should be entered | Q166: =Q99-Q165 ->  | R166: =R99-R165 ->  | S166: =S99-S165 -> 0 | T166: =T99-T165 ->  | V166: =V99-V165 -> 
M167: in equity - line Acquired net assets (only for asset deals)
H168: Fair | I168: Acquired
A169: ii) | B169: CONTINGENT LIABILITIES | H169: value | I169: balance
B170: Write specification here | K170: Identifiable contingent liabilities of the acquiree at the acquisition date.
B171: Write specification here | K171: A contingent liability is recognised only if its fair value can be measured reliably.
B172: Write specification here
B173: TOTAL CONTINGENT LIABILITIES | I173: =SUM(H170:H172) -> 0
A176: 2d) | B176: Calculation of Goodwill
I177: Amount
B178: PURCHASE PRICE | I178: =I24 -> 0
B180: IDENTIFIABLE ASSETS, LIABILITIES AND CONTINGENT LIABILITIES
B181: Assets | I181: =I99 -> 13347.79301
B182: Liabilities | I182: =-I161 -> -589.59151
B183: Net assets acquired | I183: =SUM(I181:I182) -> 12758.2015
B185: Contingent liabilities | I185: =-I173 -> 0
B186: Adjustment for minority interest | I186: =I110 -> 0
B187: ASSETS, LIABILITIES AND CONTINGENT LIABILITIES (NET) | I187: =SUM(I183:I186) -> 12758.2015
B189: CALCULATED GOODWILL | I189: =I178-SUM(I187:I188) -> -12758.2015
A193: 2e) | B193: Description of goodwill
B194: Narrative explanation/description of what the goodwill amount represents (intangibles not separated, synergies etc).

Sheet Sheet2

Sheet Sheet3
